[Event "*** SCC Grand Prix: Titled Tuesday Blitz"]
[Site "Chess.com"]
[Date "2020.09.08"]
[Round "2"]
[White "Funo09"]
[Black "Benjoneliere44"]
[Result "1-0"]
[WhiteElo "2843"]
[BlackElo "2540"]
[TimeControl "180+1"]
[EndTime "10:16:35 PDT"]
[Termination "Funo09 won by resignation"]

1. e4 {[%clk 0:03:00.9]} 1... c5 {[%clk 0:02:58.6]} 2. Nc3 {[%clk 0:03:00.2]}
2... Nc6 {[%clk 0:02:56.7]} 3. Bb5 {[%clk 0:03:00.5]} 3... Nd4 {[%clk
0:02:56.2]} 4. Nf3 {[%clk 0:02:59]} 4... g6 {[%clk 0:02:50.1]} 5. Bc4 {[%clk
0:02:53.6]} 5... Bg7 {[%clk 0:02:44.8]} 6. Nxd4 {[%clk 0:02:53.8]} 6... cxd4
{[%clk 0:02:39.2]} 7. Qf3 {[%clk 0:02:53.5]} 7... Nh6 {[%clk 0:02:39.7]} 8. Ne2
{[%clk 0:02:53.9]} 8... O-O {[%clk 0:02:37.3]} 9. d3 {[%clk 0:02:52.1]} 9... Ng4
{[%clk 0:02:36.9]} 10. Qg3 {[%clk 0:02:45.7]} 10... Ne5 {[%clk 0:02:24.4]} 11.
Bb3 {[%clk 0:02:45.9]} 11... a5 {[%clk 0:02:22]} 12. a4 {[%clk 0:02:45.4]} 12...
e6 {[%clk 0:02:06.1]} 13. Nxd4 {[%clk 0:02:28]} 13... d5 {[%clk 0:02:04.8]} 14.
exd5 {[%clk 0:02:21.5]} 14... exd5 {[%clk 0:02:03.6]} 15. O-O {[%clk 0:02:22]}
15... Nc6 {[%clk 0:01:45.5]} 16. Nb5 {[%clk 0:02:21.8]} 16... Bf5 {[%clk
0:01:37.3]} 17. Bg5 {[%clk 0:02:13.3]} 17... Qd7 {[%clk 0:01:32.2]} 18. c3
{[%clk 0:02:10.1]} 18... h6 {[%clk 0:01:19.5]} 19. Bf4 {[%clk 0:02:07.6]} 19...
g5 {[%clk 0:01:18.4]} 20. Bd6 {[%clk 0:02:00.5]} 20... Rfd8 {[%clk 0:01:16.9]}
21. Bc7 {[%clk 0:01:36.1]} 21... Re8 {[%clk 0:01:12.4]} 22. d4 {[%clk
0:01:29.8]} 22... Re2 {[%clk 0:01:03.2]} 23. Bd6 {[%clk 0:01:08.4]} 23... Rxb2
{[%clk 0:01:01.5]} 24. Bxd5 {[%clk 0:01:08.7]} 24... Re8 {[%clk 0:00:58.4]} 25.
Rae1 {[%clk 0:01:02.4]} 25... Bg6 {[%clk 0:00:44.5]} 26. h4 {[%clk 0:00:58.7]}
26... gxh4 {[%clk 0:00:42.7]} 27. Qxg6 {[%clk 0:00:58.1]} 27... Rxe1 {[%clk
0:00:38.5]} 28. Rxe1 {[%clk 0:00:59]} 28... h3 {[%clk 0:00:35.7]} 29. Bxf7+
{[%clk 0:00:55]} 29... Kh8 {[%clk 0:00:34]} 1-0

[Event "*** SCC Grand Prix: Titled Tuesday Blitz"]
[Site "Chess.com"]
[Date "2020.09.08"]
[Round "2"]
[White "tteshan"]
[Black "Renegade_Hitman"]
[Result "1-0"]
[WhiteElo "2401"]
[BlackElo "2129"]
[TimeControl "180+1"]
[EndTime "10:16:37 PDT"]
[Termination "tteshan won on time"]

1. e4 {[%clk 0:02:48.8]} 1... e6 {[%clk 0:03:00.9]} 2. d4 {[%clk 0:02:47.7]}
2... d5 {[%clk 0:03:00.6]} 3. Nd2 {[%clk 0:02:47.7]} 3... Nf6 {[%clk 0:02:59.9]}
4. e5 {[%clk 0:02:44.1]} 4... Nfd7 {[%clk 0:02:58.6]} 5. Bd3 {[%clk 0:02:44.1]}
5... c5 {[%clk 0:02:58.2]} 6. c3 {[%clk 0:02:44.3]} 6... Nc6 {[%clk 0:02:57.6]}
7. Ne2 {[%clk 0:02:44.3]} 7... Qb6 {[%clk 0:02:55.4]} 8. Nf3 {[%clk 0:02:43.6]}
8... Be7 {[%clk 0:02:50]} 9. O-O {[%clk 0:02:41.1]} 9... O-O {[%clk 0:02:43]}
10. a3 {[%clk 0:02:37.1]} 10... f5 {[%clk 0:02:35.3]} 11. exf6 {[%clk
0:02:34.4]} 11... Nxf6 {[%clk 0:02:29.4]} 12. b4 {[%clk 0:02:34.5]} 12... cxd4
{[%clk 0:02:27.4]} 13. cxd4 {[%clk 0:02:33.7]} 13... Ne4 {[%clk 0:02:20.8]} 14.
Be3 {[%clk 0:02:10.9]} 14... Qd8 {[%clk 0:01:22.6]} 15. Bxe4 {[%clk 0:02:08.6]}
15... dxe4 {[%clk 0:01:20.9]} 16. Nd2 {[%clk 0:02:09.1]} 16... e5 {[%clk
0:01:04.5]} 17. Qb3+ {[%clk 0:01:46.4]} 17... Kh8 {[%clk 0:01:02.4]} 18. d5
{[%clk 0:01:46.2]} 18... Nd4 {[%clk 0:00:56]} 19. Nxd4 {[%clk 0:01:44.3]} 19...
exd4 {[%clk 0:00:56.9]} 20. Bxd4 {[%clk 0:01:44.8]} 20... Bf5 {[%clk 0:00:43.9]}
21. Rfe1 {[%clk 0:01:38.8]} 21... Bf6 {[%clk 0:00:09.1]} 22. Bxf6 {[%clk
0:01:36.9]} 22... Qxf6 {[%clk 0:00:08]} 23. Rad1 {[%clk 0:01:31.2]} 23... Rae8
{[%clk 0:00:06.5]} 24. Qe3 {[%clk 0:01:26.9]} 24... Bg4 {[%clk 0:00:05.9]} 25.
Rc1 {[%clk 0:01:26]} 25... Qd6 {[%clk 0:00:01.6]} 26. Qc5 {[%clk 0:01:13.9]} 1-0

[Event "*** SCC Grand Prix: Titled Tuesday Blitz"]
[Site "Chess.com"]
[Date "2020.09.08"]
[Round "2"]
[White "VladimirBugayev"]
[Black "dragos420"]
[Result "0-1"]
[WhiteElo "2276"]
[BlackElo "2495"]
[TimeControl "180+1"]
[EndTime "10:16:42 PDT"]
[Termination "dragos420 won by resignation"]

1. e4 {[%clk 0:03:00.9]} 1... e5 {[%clk 0:02:59.5]} 2. Nf3 {[%clk 0:02:59.9]}
2... Nc6 {[%clk 0:03:00.4]} 3. Nc3 {[%clk 0:03:00.4]} 3... Nf6 {[%clk
0:02:59.4]} 4. d4 {[%clk 0:03:00.6]} 4... exd4 {[%clk 0:02:59.4]} 5. Nxd4 {[%clk
0:03:01.1]} 5... Bb4 {[%clk 0:02:58.4]} 6. Nxc6 {[%clk 0:03:01.4]} 6... bxc6
{[%clk 0:02:58.2]} 7. Bd3 {[%clk 0:03:01.4]} 7... O-O {[%clk 0:02:58]} 8. O-O
{[%clk 0:03:00.4]} 8... d5 {[%clk 0:02:57.8]} 9. exd5 {[%clk 0:03:00.6]} 9...
cxd5 {[%clk 0:02:58.7]} 10. h3 {[%clk 0:03:00]} 10... h6 {[%clk 0:02:57.7]} 11.
Qf3 {[%clk 0:02:59.2]} 11... c6 {[%clk 0:02:56.5]} 12. Bf4 {[%clk 0:02:58.5]}
12... Bd6 {[%clk 0:02:49.6]} 13. b3 {[%clk 0:02:49.3]} 13... Rb8 {[%clk
0:02:43.2]} 14. Rad1 {[%clk 0:02:47.2]} 14... Qc7 {[%clk 0:02:40.5]} 15. Ne2
{[%clk 0:02:40.2]} 15... Bxf4 {[%clk 0:02:34.4]} 16. Nxf4 {[%clk 0:02:31.5]}
16... Rb4 {[%clk 0:02:33.5]} 17. c4 {[%clk 0:02:31.5]} 17... Ba6 {[%clk
0:02:24]} 18. Rc1 {[%clk 0:02:24.5]} 18... dxc4 {[%clk 0:02:21.6]} 19. Bxc4
{[%clk 0:02:21.3]} 19... Bxc4 {[%clk 0:02:21.6]} 20. Rxc4 {[%clk 0:02:20.1]}
20... Rxc4 {[%clk 0:02:21.8]} 21. bxc4 {[%clk 0:02:20.1]} 21... Rd8 {[%clk
0:02:22.7]} 22. Qe3 {[%clk 0:01:55.3]} 22... Re8 {[%clk 0:02:15.2]} 23. Qd2
{[%clk 0:01:44.9]} 23... Re4 {[%clk 0:02:10.4]} 24. g3 {[%clk 0:01:35.7]} 24...
Rxc4 {[%clk 0:02:09.7]} 25. Rb1 {[%clk 0:01:30.2]} 25... Re4 {[%clk 0:02:02.5]}
26. Rc1 {[%clk 0:01:28.2]} 26... Re8 {[%clk 0:01:53]} 27. Kg2 {[%clk 0:00:56.8]}
27... Rc8 {[%clk 0:01:51.4]} 28. Rc5 {[%clk 0:00:53.9]} 28... Ne4 {[%clk
0:01:48.9]} 29. Qd4 {[%clk 0:00:44.8]} 29... Nxc5 {[%clk 0:01:45.7]} 30. Qxc5
{[%clk 0:00:45.1]} 30... Qb6 {[%clk 0:01:41.6]} 31. Qe7 {[%clk 0:00:42.5]} 31...
c5 {[%clk 0:01:38.6]} 32. Qe5 {[%clk 0:00:28.3]} 32... Qf6 {[%clk 0:01:23.1]}
33. Qe4 {[%clk 0:00:22]} 33... Qc6 {[%clk 0:01:21.5]} 34. Nd5 {[%clk 0:00:22]}
34... Kh8 {[%clk 0:01:19.8]} 35. Kh2 {[%clk 0:00:16.3]} 35... Rd8 {[%clk
0:01:17.1]} 0-1

[Event "*** SCC Grand Prix: Titled Tuesday Blitz"]
[Site "Chess.com"]
[Date "2020.09.08"]
[Round "2"]
[White "GaboSalazar2001"]
[Black "WIDBIFS"]
[Result "0-1"]
[WhiteElo "2332"]
[BlackElo "2703"]
[TimeControl "180+1"]
[EndTime "10:16:46 PDT"]
[Termination "WIDBIFS won by resignation"]

1. e4 {[%clk 0:03:00.9]} 1... c6 {[%clk 0:02:59.8]} 2. Nc3 {[%clk 0:03:00.3]}
2... d5 {[%clk 0:03:00.7]} 3. Nf3 {[%clk 0:03:00.9]} 3... Bg4 {[%clk 0:03:00.2]}
4. h3 {[%clk 0:03:01.1]} 4... Bxf3 {[%clk 0:03:00.3]} 5. gxf3 {[%clk 0:03:01.7]}
5... Nf6 {[%clk 0:03:01.1]} 6. d4 {[%clk 0:03:00.8]} 6... e6 {[%clk 0:02:58.8]}
7. Rg1 {[%clk 0:03:01.1]} 7... g6 {[%clk 0:02:58.1]} 8. Bg5 {[%clk 0:02:56.6]}
8... Be7 {[%clk 0:02:58.2]} 9. Qd3 {[%clk 0:02:52.8]} 9... Nbd7 {[%clk 0:02:57]}
10. O-O-O {[%clk 0:02:44.7]} 10... Nh5 {[%clk 0:02:54.6]} 11. Be3 {[%clk
0:02:33.2]} 11... Qc7 {[%clk 0:02:48.8]} 12. Kb1 {[%clk 0:02:18.4]} 12... O-O-O
{[%clk 0:02:46.5]} 13. Be2 {[%clk 0:02:08]} 13... a6 {[%clk 0:02:45.3]} 14. Qd2
{[%clk 0:02:07.2]} 14... Bd6 {[%clk 0:02:42.7]} 15. e5 {[%clk 0:01:53]} 15...
Be7 {[%clk 0:02:41.5]} 16. Bh6 {[%clk 0:01:53.3]} 16... Rdg8 {[%clk 0:02:37.7]}
17. f4 {[%clk 0:01:50.2]} 17... Ng7 {[%clk 0:02:37.2]} 18. Bxg7 {[%clk 0:01:50]}
18... Rxg7 {[%clk 0:02:38.1]} 19. Qe3 {[%clk 0:01:45.7]} 19... Rhg8 {[%clk
0:02:37.3]} 20. Rg2 {[%clk 0:01:41.2]} 20... Kb8 {[%clk 0:02:28.6]} 21. Rdg1
{[%clk 0:01:40.5]} 21... Nb6 {[%clk 0:02:29.1]} 22. Qg3 {[%clk 0:01:29.8]} 22...
c5 {[%clk 0:02:27.2]} 23. dxc5 {[%clk 0:01:19.7]} 23... Bxc5 {[%clk 0:02:27.1]}
24. h4 {[%clk 0:01:16.7]} 24... h5 {[%clk 0:02:25.8]} 25. Qd3 {[%clk 0:01:10]}
25... Bb4 {[%clk 0:02:18.4]} 26. Bxh5 {[%clk 0:00:44.9]} 26... Rh7 {[%clk
0:02:10.9]} 27. Bf3 {[%clk 0:00:36.5]} 27... Rxh4 {[%clk 0:02:09.4]} 28. Ne2
{[%clk 0:00:36.4]} 28... Rc8 {[%clk 0:02:04]} 29. c3 {[%clk 0:00:36.2]} 29...
Bc5 {[%clk 0:02:02.5]} 30. Nd4 {[%clk 0:00:30.1]} 30... Rxf4 {[%clk 0:01:58.1]}
31. Rh2 {[%clk 0:00:20.9]} 31... Nc4 {[%clk 0:01:54.9]} 32. Ne2 {[%clk
0:00:19.8]} 32... Rf5 {[%clk 0:01:44.3]} 33. Bg4 {[%clk 0:00:16.4]} 33... Nxe5
{[%clk 0:01:44]} 34. Qg3 {[%clk 0:00:15.1]} 34... Nxg4 {[%clk 0:01:41]} 35.
Qxc7+ {[%clk 0:00:14.3]} 35... Rxc7 {[%clk 0:01:37.1]} 36. Rxg4 {[%clk
0:00:15.2]} 36... Rxf2 {[%clk 0:01:35.8]} 37. Rxf2 {[%clk 0:00:13.2]} 37... Bxf2
{[%clk 0:01:36.7]} 38. Rf4 {[%clk 0:00:14.1]} 38... Be3 {[%clk 0:01:33.4]} 39.
Rf3 {[%clk 0:00:14.1]} 39... Bg5 {[%clk 0:01:32.2]} 40. Nd4 {[%clk 0:00:13.9]}
40... e5 {[%clk 0:01:29.3]} 0-1

[Event "*** SCC Grand Prix: Titled Tuesday Blitz"]
[Site "Chess.com"]
[Date "2020.09.08"]
[Round "2"]
[White "rakshi2005"]
[Black "Caterpiller35"]
[Result "0-1"]
[WhiteElo "2249"]
[BlackElo "2464"]
[TimeControl "180+1"]
[EndTime "10:16:46 PDT"]
[Termination "Caterpiller35 won by resignation"]

1. e4 {[%clk 0:03:00.9]} 1... c5 {[%clk 0:02:59.1]} 2. Nf3 {[%clk 0:02:56.5]}
2... Nc6 {[%clk 0:02:58]} 3. d4 {[%clk 0:02:57.4]} 3... cxd4 {[%clk 0:02:58.9]}
4. Nxd4 {[%clk 0:02:58.3]} 4... e5 {[%clk 0:02:59.3]} 5. Nxc6 {[%clk 0:02:54.7]}
5... bxc6 {[%clk 0:02:59.2]} 6. Nc3 {[%clk 0:02:55]} 6... Nf6 {[%clk 0:02:59.2]}
7. Bg5 {[%clk 0:02:54.5]} 7... Bc5 {[%clk 0:02:59.3]} 8. Bc4 {[%clk 0:02:54.3]}
8... d6 {[%clk 0:02:59.3]} 9. O-O {[%clk 0:02:52.9]} 9... h6 {[%clk 0:02:59.4]}
10. Bh4 {[%clk 0:02:52.8]} 10... g5 {[%clk 0:02:59.7]} 11. Bg3 {[%clk
0:02:52.8]} 11... h5 {[%clk 0:03:00]} 12. h3 {[%clk 0:02:51.5]} 12... h4 {[%clk
0:02:58.2]} 13. Bh2 {[%clk 0:02:51]} 13... g4 {[%clk 0:02:58.5]} 14. Na4 {[%clk
0:02:41.2]} 14... g3 {[%clk 0:02:55]} 15. Nxc5 {[%clk 0:02:33.7]} 15... gxh2+
{[%clk 0:02:54.4]} 16. Kxh2 {[%clk 0:02:34.1]} 16... dxc5 {[%clk 0:02:54.7]} 17.
Qf3 {[%clk 0:02:34]} 17... Qe7 {[%clk 0:02:52.2]} 18. Rad1 {[%clk 0:02:33.3]}
18... Be6 {[%clk 0:02:51.8]} 19. Be2 {[%clk 0:02:20.6]} 19... Rg8 {[%clk
0:02:46.8]} 20. Qc3 {[%clk 0:01:24.8]} 20... Nd7 {[%clk 0:02:26.7]} 21. Qa5
{[%clk 0:01:06.2]} 21... Qg5 {[%clk 0:02:25.5]} 22. Bf3 {[%clk 0:01:03.4]} 22...
Qf4+ {[%clk 0:02:25.1]} 23. Kh1 {[%clk 0:01:02.9]} 23... Bxh3 {[%clk 0:02:20.2]}
24. Qc7 {[%clk 0:00:51.7]} 24... Be6 {[%clk 0:01:41.5]} 25. Qxc6 {[%clk
0:00:40.7]} 25... Rd8 {[%clk 0:01:40.2]} 26. Rd6 {[%clk 0:00:37.2]} 26... h3
{[%clk 0:01:31.8]} 27. Rxe6+ {[%clk 0:00:20.1]} 27... fxe6 {[%clk 0:01:28.6]}
28. Qxe6+ {[%clk 0:00:19.5]} 28... Kf8 {[%clk 0:01:28.9]} 29. Qd6+ {[%clk
0:00:18.9]} 29... Kg7 {[%clk 0:01:23]} 30. Qe7+ {[%clk 0:00:18]} 30... Kh8
{[%clk 0:01:21.3]} 0-1

[Event "*** SCC Grand Prix: Titled Tuesday Blitz"]
[Site "Chess.com"]
[Date "2020.09.08"]
[Round "2"]
[White "dbrankovic68"]
[Black "politeplayer"]
[Result "0-1"]
[WhiteElo "2445"]
[BlackElo "2256"]
[TimeControl "180+1"]
[EndTime "10:16:48 PDT"]
[Termination "politeplayer won by resignation"]

1. e4 {[%clk 0:03:00]} 1... c5 {[%clk 0:02:59.6]} 2. Nf3 {[%clk 0:02:59.9]} 2...
d6 {[%clk 0:02:59.6]} 3. d4 {[%clk 0:02:58.8]} 3... cxd4 {[%clk 0:02:59.3]} 4.
Nxd4 {[%clk 0:02:59.4]} 4... Nf6 {[%clk 0:02:58]} 5. Nc3 {[%clk 0:02:59.8]} 5...
g6 {[%clk 0:02:58.4]} 6. Be3 {[%clk 0:02:49.7]} 6... Bg7 {[%clk 0:02:58.6]} 7.
f3 {[%clk 0:02:50]} 7... O-O {[%clk 0:02:58.8]} 8. Qd2 {[%clk 0:02:50.5]} 8...
Nc6 {[%clk 0:02:58.7]} 9. Bc4 {[%clk 0:02:47.7]} 9... Bd7 {[%clk 0:02:58.7]} 10.
Bb3 {[%clk 0:02:47.1]} 10... Rc8 {[%clk 0:02:58.8]} 11. O-O-O {[%clk 0:02:47.3]}
11... Nxd4 {[%clk 0:02:58.5]} 12. Bxd4 {[%clk 0:02:46.8]} 12... b5 {[%clk
0:02:59]} 13. h4 {[%clk 0:02:46.9]} 13... a5 {[%clk 0:02:58]} 14. h5 {[%clk
0:02:22.3]} 14... a4 {[%clk 0:02:54.3]} 15. Bxf6 {[%clk 0:02:22.3]} 15... exf6
{[%clk 0:02:51.7]} 16. Bd5 {[%clk 0:02:22]} 16... b4 {[%clk 0:02:35.3]} 17. Ne2
{[%clk 0:02:20.4]} 17... b3 {[%clk 0:02:23]} 18. axb3 {[%clk 0:02:17.2]} 18...
axb3 {[%clk 0:02:14.8]} 19. Bxb3 {[%clk 0:02:16.7]} 19... Qb6 {[%clk 0:02:11.2]}
20. Nd4 {[%clk 0:02:04]} 20... f5 {[%clk 0:02:04.1]} 21. exf5 {[%clk 0:01:58.6]}
21... Bxd4 {[%clk 0:01:59.6]} 22. Qxd4 {[%clk 0:01:49.9]} 22... Qxb3 {[%clk
0:01:59.1]} 23. Qd3 {[%clk 0:01:17.7]} 23... Qxd3 {[%clk 0:01:51.5]} 24. Rxd3
{[%clk 0:01:17.4]} 24... Bxf5 {[%clk 0:01:51.5]} 25. Rd2 {[%clk 0:01:17.2]}
25... Ra8 {[%clk 0:01:46.3]} 26. Kb1 {[%clk 0:01:16.8]} 26... Ra6 {[%clk
0:01:42.2]} 27. Rhd1 {[%clk 0:01:08.6]} 27... Rfa8 {[%clk 0:01:40.6]} 28. b3
{[%clk 0:01:08.9]} 28... Ra1+ {[%clk 0:01:37.5]} 29. Kb2 {[%clk 0:01:08.9]}
29... R8a2+ {[%clk 0:01:33.5]} 30. Kc3 {[%clk 0:01:08.7]} 30... Rxd1 {[%clk
0:01:32.5]} 31. Rxd1 {[%clk 0:01:09]} 31... Rxc2+ {[%clk 0:01:32.3]} 32. Kb4
{[%clk 0:01:07.7]} 32... Rxg2 {[%clk 0:01:29.6]} 33. Rxd6 {[%clk 0:01:05]} 33...
gxh5 {[%clk 0:01:27.9]} 34. Rd5 {[%clk 0:00:58.2]} 34... Bg6 {[%clk 0:01:21]}
35. f4 {[%clk 0:00:58.3]} 35... Rg4 {[%clk 0:01:16.2]} 36. Rd4 {[%clk
0:00:51.9]} 36... h4 {[%clk 0:01:15.4]} 37. Kc5 {[%clk 0:00:52.3]} 37... h3
{[%clk 0:01:15.2]} 38. Rd1 {[%clk 0:00:42.1]} 38... Rxf4 {[%clk 0:01:12.8]} 39.
b4 {[%clk 0:00:42.4]} 39... h2 {[%clk 0:01:10]} 40. b5 {[%clk 0:00:42.3]} 40...
Be4 {[%clk 0:01:06.2]} 0-1

[Event "*** SCC Grand Prix: Titled Tuesday Blitz"]
[Site "Chess.com"]
[Date "2020.09.08"]
[Round "2"]
[White "Volodar_Murzin"]
[Black "chessmachine14"]
[Result "0-1"]
[WhiteElo "2624"]
[BlackElo "2340"]
[TimeControl "180+1"]
[EndTime "10:16:50 PDT"]
[Termination "chessmachine14 won on time"]

1. e4 {[%clk 0:03:00.9]} 1... c5 {[%clk 0:02:59.5]} 2. Nf3 {[%clk 0:03:00.4]}
2... e6 {[%clk 0:02:59.9]} 3. d4 {[%clk 0:02:57.6]} 3... cxd4 {[%clk 0:03:00]}
4. Nxd4 {[%clk 0:02:58.5]} 4... Nf6 {[%clk 0:03:00]} 5. Bd3 {[%clk 0:02:57.7]}
5... d6 {[%clk 0:02:55.2]} 6. O-O {[%clk 0:02:56.5]} 6... Be7 {[%clk 0:02:56.1]}
7. c4 {[%clk 0:02:55.5]} 7... O-O {[%clk 0:02:56.6]} 8. Nc3 {[%clk 0:02:53.4]}
8... b6 {[%clk 0:02:56.4]} 9. Be3 {[%clk 0:02:32.8]} 9... Bb7 {[%clk 0:02:56.1]}
10. Rc1 {[%clk 0:02:28.8]} 10... Nbd7 {[%clk 0:02:55.2]} 11. f3 {[%clk
0:02:28.4]} 11... a6 {[%clk 0:02:53.2]} 12. Qd2 {[%clk 0:02:26.8]} 12... Qc7
{[%clk 0:02:53]} 13. Rfd1 {[%clk 0:02:25.1]} 13... Rac8 {[%clk 0:02:52.4]} 14.
b3 {[%clk 0:02:24.2]} 14... Qb8 {[%clk 0:02:50.3]} 15. Bf1 {[%clk 0:02:18.7]}
15... Bd8 {[%clk 0:02:50.2]} 16. Bf2 {[%clk 0:02:05.2]} 16... Bc7 {[%clk
0:02:49.5]} 17. Bg3 {[%clk 0:01:55.7]} 17... Nh5 {[%clk 0:02:48]} 18. Nde2
{[%clk 0:01:13.3]} 18... Nxg3 {[%clk 0:02:46.1]} 19. hxg3 {[%clk 0:01:13.8]}
19... Ne5 {[%clk 0:02:29.4]} 20. g4 {[%clk 0:01:03.9]} 20... Rfd8 {[%clk
0:02:28]} 21. Nd4 {[%clk 0:00:55.8]} 21... Ng6 {[%clk 0:02:23.2]} 22. Kh1 {[%clk
0:00:50.6]} 22... d5 {[%clk 0:02:22.7]} 23. Qc2 {[%clk 0:00:19.9]} 23... b5
{[%clk 0:01:45.1]} 24. exd5 {[%clk 0:00:12.4]} 24... exd5 {[%clk 0:01:44.6]} 25.
Nxd5 {[%clk 0:00:07.2]} 25... Bxd5 {[%clk 0:01:42.5]} 26. cxd5 {[%clk
0:00:08.1]} 26... Bf4 {[%clk 0:01:42.2]} 27. Nc6 {[%clk 0:00:08]} 27... Bxc1
{[%clk 0:01:31.6]} 28. Qxc1 {[%clk 0:00:02.9]} 28... Qd6 {[%clk 0:01:31.5]} 29.
Bd3 {[%clk 0:00:01.1]} 29... Ne5 {[%clk 0:01:21.4]} 30. Be4 {[%clk 0:00:01.4]}
30... Nxc6 {[%clk 0:01:20.7]} 0-1

[Event "*** SCC Grand Prix: Titled Tuesday Blitz"]
[Site "Chess.com"]
[Date "2020.09.08"]
[Round "2"]
[White "AccioChess"]
[Black "ClockworkKubrick"]
[Result "1-0"]
[WhiteElo "2405"]
[BlackElo "2151"]
[TimeControl "180+1"]
[EndTime "10:16:51 PDT"]
[Termination "AccioChess won by resignation"]

1. e4 {[%clk 0:03:00.9]} 1... d6 {[%clk 0:03:00.2]} 2. d4 {[%clk 0:02:58.7]}
2... Nf6 {[%clk 0:02:55.8]} 3. Nc3 {[%clk 0:02:58]} 3... g6 {[%clk 0:02:56]} 4.
Bg5 {[%clk 0:02:54.4]} 4... Bg7 {[%clk 0:02:56]} 5. Qd2 {[%clk 0:02:54.5]} 5...
O-O {[%clk 0:02:56]} 6. Bh6 {[%clk 0:02:53.5]} 6... c6 {[%clk 0:02:55.6]} 7. h4
{[%clk 0:02:52.6]} 7... Nbd7 {[%clk 0:02:55]} 8. h5 {[%clk 0:02:51.7]} 8... b5
{[%clk 0:02:54.2]} 9. hxg6 {[%clk 0:02:50]} 9... fxg6 {[%clk 0:02:54.3]} 10.
Bxg7 {[%clk 0:02:43]} 10... Kxg7 {[%clk 0:02:54.1]} 11. Qh6+ {[%clk 0:02:35.3]}
11... Kg8 {[%clk 0:02:53.9]} 12. Nf3 {[%clk 0:02:35.9]} 12... e5 {[%clk
0:02:44]} 13. O-O-O {[%clk 0:02:23.8]} 13... Qe7 {[%clk 0:02:43]} 14. Ng5 {[%clk
0:02:10.9]} 14... Nb6 {[%clk 0:02:37.7]} 15. dxe5 {[%clk 0:02:08.7]} 15... dxe5
{[%clk 0:02:37.2]} 16. f3 {[%clk 0:02:07.5]} 16... Be6 {[%clk 0:02:31.9]} 17.
Nxe6 {[%clk 0:00:52.4]} 17... Qxe6 {[%clk 0:02:31.6]} 18. g4 {[%clk 0:00:43.3]}
18... Rf7 {[%clk 0:02:28.2]} 19. g5 {[%clk 0:00:40.8]} 19... Nh5 {[%clk
0:02:23.6]} 20. Rxh5 {[%clk 0:00:39.5]} 20... b4 {[%clk 0:02:18.4]} 21. Nb1
{[%clk 0:00:39.2]} 21... Qxa2 {[%clk 0:02:12.2]} 22. Rh2 {[%clk 0:00:27.1]}
22... Na4 {[%clk 0:02:11.9]} 23. Bd3 {[%clk 0:00:24.6]} 23... Nxb2 {[%clk
0:02:01.9]} 24. Rdh1 {[%clk 0:00:24.5]} 24... Nxd3+ {[%clk 0:02:00.6]} 25. cxd3
{[%clk 0:00:25.4]} 25... Qb3 {[%clk 0:01:47.4]} 26. Qxg6+ {[%clk 0:00:25.3]}
26... Kf8 {[%clk 0:01:46.2]} 27. Rxh7 {[%clk 0:00:23.2]} 27... Re8 {[%clk
0:01:22.6]} 28. Rh8+ {[%clk 0:00:20.8]} 28... Ke7 {[%clk 0:01:22]} 29. Rxe8+
{[%clk 0:00:21.1]} 29... Kxe8 {[%clk 0:01:22.3]} 30. Rh7 {[%clk 0:00:19.8]}
30... a5 {[%clk 0:01:19.8]} 31. Qxf7+ {[%clk 0:00:17.9]} 31... Qxf7 {[%clk
0:01:18.9]} 32. Rxf7 {[%clk 0:00:18.8]} 32... Kxf7 {[%clk 0:01:19.2]} 33. Nd2
{[%clk 0:00:19.5]} 33... Kg6 {[%clk 0:01:19.4]} 34. Nc4 {[%clk 0:00:19.5]} 34...
a4 {[%clk 0:01:16.5]} 35. Nxe5+ {[%clk 0:00:19.1]} 35... Kxg5 {[%clk 0:01:16.6]}
36. Nxc6 {[%clk 0:00:20]} 36... Kf4 {[%clk 0:01:17.2]} 37. Nxb4 {[%clk
0:00:19.3]} 37... Kxf3 {[%clk 0:01:17.2]} 38. e5 {[%clk 0:00:19.6]} 1-0

[Event "*** SCC Grand Prix: Titled Tuesday Blitz"]
[Site "Chess.com"]
[Date "2020.09.08"]
[Round "2"]
[White "laboratorio25"]
[Black "RobertoJBM"]
[Result "0-1"]
[WhiteElo "2403"]
[BlackElo "2677"]
[TimeControl "180+1"]
[EndTime "10:16:52 PDT"]
[Termination "RobertoJBM won by resignation"]

1. e4 {[%clk 0:03:00.9]} 1... c6 {[%clk 0:02:59.9]} 2. d4 {[%clk 0:03:00]} 2...
d5 {[%clk 0:03:00.8]} 3. Nd2 {[%clk 0:03:00.4]} 3... dxe4 {[%clk 0:03:00.5]} 4.
Nxe4 {[%clk 0:03:01.3]} 4... Nd7 {[%clk 0:03:01.1]} 5. Ng5 {[%clk 0:03:00.9]}
5... Ngf6 {[%clk 0:03:01.1]} 6. Bd3 {[%clk 0:03:01]} 6... e6 {[%clk 0:03:01.6]}
7. N1f3 {[%clk 0:03:01.1]} 7... Bd6 {[%clk 0:03:01.3]} 8. Qe2 {[%clk 0:02:59]}
8... h6 {[%clk 0:03:01.7]} 9. Ne4 {[%clk 0:02:59.3]} 9... Nxe4 {[%clk
0:03:02.2]} 10. Qxe4 {[%clk 0:02:59.8]} 10... Nf6 {[%clk 0:03:02.8]} 11. Qe2
{[%clk 0:02:59.5]} 11... Qc7 {[%clk 0:03:02.7]} 12. Bd2 {[%clk 0:02:59.4]} 12...
b6 {[%clk 0:03:03.2]} 13. O-O-O {[%clk 0:02:58.1]} 13... Bb7 {[%clk 0:03:03.7]}
14. h3 {[%clk 0:02:55.7]} 14... c5 {[%clk 0:03:01.3]} 15. Kb1 {[%clk 0:02:51.2]}
15... O-O-O {[%clk 0:02:46.4]} 16. Ba6 {[%clk 0:02:51]} 16... Bxa6 {[%clk
0:02:44.4]} 17. Qxa6+ {[%clk 0:02:51.9]} 17... Qb7 {[%clk 0:02:45.3]} 18. Qa4
{[%clk 0:02:24.3]} 18... b5 {[%clk 0:02:40.5]} 19. Qa5 {[%clk 0:02:14.1]} 19...
Bc7 {[%clk 0:02:33.3]} 20. Qc3 {[%clk 0:02:06]} 20... c4 {[%clk 0:02:29.6]} 21.
Ne5 {[%clk 0:02:00.3]} 21... Nd5 {[%clk 0:02:12.4]} 22. Qf3 {[%clk 0:01:45.8]}
22... Bxe5 {[%clk 0:02:03.1]} 23. dxe5 {[%clk 0:01:44.8]} 23... Rd7 {[%clk
0:02:03.3]} 24. Bc1 {[%clk 0:01:31.1]} 24... Rhd8 {[%clk 0:01:57.2]} 25. Ka1
{[%clk 0:01:21.7]} 25... Nb4 {[%clk 0:01:50.8]} 26. Qxb7+ {[%clk 0:01:20.9]}
26... Kxb7 {[%clk 0:01:50.1]} 27. Rxd7+ {[%clk 0:01:20.9]} 27... Rxd7 {[%clk
0:01:51]} 28. Kb1 {[%clk 0:01:21]} 28... Rd5 {[%clk 0:01:46.2]} 29. Re1 {[%clk
0:01:18.2]} 29... Nc6 {[%clk 0:01:43.3]} 30. f4 {[%clk 0:01:17.3]} 30... h5
{[%clk 0:01:41.8]} 31. g4 {[%clk 0:01:15.7]} 31... hxg4 {[%clk 0:01:42.5]} 32.
hxg4 {[%clk 0:01:16.4]} 32... g6 {[%clk 0:01:43.3]} 33. Rh1 {[%clk 0:01:02]}
33... Rd7 {[%clk 0:01:42]} 34. Be3 {[%clk 0:00:58.2]} 34... Ne7 {[%clk
0:01:38.7]} 35. Bc5 {[%clk 0:00:54.5]} 35... Nd5 {[%clk 0:01:38.5]} 36. f5
{[%clk 0:00:39.1]} 36... gxf5 {[%clk 0:01:37.7]} 37. gxf5 {[%clk 0:00:39.3]}
37... exf5 {[%clk 0:01:38.6]} 38. Kc1 {[%clk 0:00:36.9]} 38... Nf4 {[%clk
0:01:31.7]} 39. Bd6 {[%clk 0:00:35]} 39... Ne6 {[%clk 0:01:27.1]} 40. Rh5 {[%clk
0:00:26.1]} 40... f4 {[%clk 0:01:23.3]} 41. Rf5 {[%clk 0:00:25.7]} 41... Kc6
{[%clk 0:01:23.4]} 42. Kd2 {[%clk 0:00:24.4]} 42... Kd5 {[%clk 0:01:23.4]} 43.
Ke2 {[%clk 0:00:22.1]} 43... Nd4+ {[%clk 0:01:23.2]} 0-1